Cogmind - Beta 14 @@@ ROGUE MODE // 2024.11.24 @ 16:28:13 Player: Tenderz Result: Destroyed by Y-54 Guardian with Gatling Laser Performance ------------- Evolutions (3) 1500 Regions Visited (11) 2200 Robots Destroyed (112) 560 Value Destroyed (4972) 4972 Prototype IDs (30) 600 Alien Tech Used (0) 0 Bonus (2124) 2124 TOTAL SCORE: 11956 Bonus ------- High Alert Combat Kills 194 Follower Combat Kills 230 Entered Garrisons 400 Used RIF Installer 1000 Aligned with FarCom 300 Cogmind --------- Core Integrity 0/700 Matter 300/300 Energy 290/290 System Corruption 2% Temperature Cool (6) Movement Treading (160) Location -7/Lower Caves Parts ------- > --- POWER (1) -------- Improved Deuterium Engine > --- PROPULSION (4) --- Improved Heavy Treads Improved Heavy Treads > --- UTILITY (5) ------ High-capacity Storage Unit Improved Melee Analysis Suite Microactuators Improved Medium Armor Plating Relay Coupler [Swarmer] (45) > --- WEAPON (3) ------- Makeshift Hammer Axe Great Axe > --- INVENTORY (20) --- Light Nuclear Core Improved Heavy Treads Improved Carbon-fiber Leg Compact Matter Pod (150) Improved Melee Analysis Suite Improved Melee Analysis Suite Force Booster Relay Coupler [NC] (31) Relay Coupler [Grunt] (22) Relay Coupler [Brawler] (27) Relay Coupler [Duelist] (23) Relay Coupler [Hunter] (19) Gauss Rifle Assault Cannon Assault Cannon Assault Cannon Missile Launcher Katana Peak State ------------ > --- POWER ------------ Light Nuclear Core > --- PROPULSION ------- Improved Heavy Treads Improved Heavy Treads > --- UTILITY ---------- High-capacity Storage Unit Gravity Neutralizer Improved Melee Analysis Suite Improved Melee Analysis Suite Relay Coupler [Swarmer] > --- WEAPON ----------- Katana Axe Spear > --- INVENTORY -------- Improved Heavy Treads Improved Heavy Treads Improved Heavy Treads Advanced Heat Sink Compact Matter Pod Improved Melee Analysis Suite Improved Melee Analysis Suite Microactuators Improved Light Armor Plating Improved Medium Armor Plating Relay Coupler [NC] Relay Coupler [Grunt] Relay Coupler [Brawler] Relay Coupler [Duelist] Relay Coupler [Hunter] Gauss Rifle Missile Launcher [Rating: 68] Favorites ----------- Power Light Nuclear Core Engine Improved Ion Engine Power Core Light Nuclear Core Propulsion Aluminum Leg Treads Improved Heavy Treads Leg Aluminum Leg Wheel Wheel Utility Improved Melee Analysis Suite Device Improved Trap Extractor Storage Large Storage Unit Processor Improved Melee Analysis Suite Hackware Relay Coupler [Swarmer] Protection Hardened Medium Armor Plating Weapon Katana Energy Gun Medium Laser Ballistic Gun Heavy Assault Rifle Ballistic Cannon Assault Cannon Launcher Rocket Launcher Special Weapon Remote Datajack Impact Weapon Hammer Slashing Weapon Katana Piercing Weapon Spear Build | -11 -10 -10 -10 -9 -8 -8 -8 -7 -7 -7 -7 ------- Run | Yrd Mat Min Exi Min Mat Gar Mat Fac Gar Fac Low Slots Evolved 6 | . . . . . 4 . . 2 . . . Power . | . . . . . . . . . . . . Propulsion 2 | . . . . . 1 . . 1 . . . Utility 3 | . . . . . 3 . . . . . . Weapon 1 | . . . . . . . . 1 . . . Parts Attached 160 | 10 22 12 2 13 15 5 14 12 35 10 10 Power 21 | 1 3 2 . 2 1 2 1 . 5 2 2 Engine 9 | 1 3 1 . . . . 1 . 1 1 1 Core 12 | . . 1 . 2 1 2 . . 4 1 1 Reactor . | . . . . . . . . . . . . Propulsion 42 | 4 5 2 . 1 4 1 1 6 16 . 2 Treads 4 | . . . . . . . . . 2 . 2 Leg 28 | . 2 2 . 1 4 1 1 6 11 . . Wheel 10 | 4 3 . . . . . . . 3 . . Hover . | . . . . . . . . . . . . Flight . | . . . . . . . . . . . . Utility 51 | 2 4 4 1 6 6 2 8 2 8 6 2 Device 22 | 1 1 3 . 4 2 1 3 1 1 4 1 Storage 8 | 1 2 . 1 2 . . 1 . 1 . . Processor 6 | . 1 1 . . 2 . 1 . 1 . . Hackware 3 | . . . . . . . . . 3 . . Protection 12 | . . . . . 2 1 3 1 2 2 1 Artifact . | . . . . . . . . . . . . Weapon 46 | 3 10 4 1 4 4 . 4 4 6 2 4 Energy Gun 9 | 2 6 1 . . . . . . . . . Energy Cannon . | . . . . . . . . . . . . Ballistic Gun 3 | 1 . . . 2 . . . . . . . Ballistic Cannon 1 | . . . . . . . . 1 . . . Launcher 10 | . 3 1 . 1 1 . 1 1 1 . 1 Special Weapon 4 | . . . . . . . 1 1 2 . . Impact Weapon 5 | . 1 1 1 . . . . . . . 2 Slashing Weapon 9 | . . 1 . . 1 . 1 1 2 2 1 Piercing Weapon 5 | . . . . 1 2 . 1 . 1 . . Special Melee Weapon . | . . . . . . . . . . . . Unidentified Prototypes 3 | . . . . . . . 2 . . 1 . Corrupted Parts 4 | . . 4 . . . . . . . . . System Corruption 18 | . . 18 . . . . . . . . . Parts Lost 27 | . 4 . . . 1 1 2 1 15 . 3 Power 4 | . 1 . . . . . . . 2 . 1 Propulsion 13 | . 2 . . . . . . . 9 . 2 Utility 7 | . . . . . 1 1 2 1 2 . . Weapon 3 | . 1 . . . . . . . 2 . . Highest Loss Streak 5 | . 3 . . . 1 1 1 1 5 . 2 To Critical Strikes 1 | . . . . . . . . . . . 1 Average Slot Usage (%) 95 | . 98 100 96 99 98 99 99 100 93 84 83 Engine 5 | . 13 12 14 4 . . 5 7 . . 4 Core 4 | . . 1 . 9 9 9 4 . 6 6 2 Treads 2 | . . . . . . . . . 1 15 14 Leg 21 | . 13 27 28 28 27 27 26 30 25 . . Wheel 1 | . 13 . . . . . . . . . . Device 4 | . 1 . 14 14 4 4 8 2 . 3 10 Storage 10 | . 12 14 14 14 9 9 9 7 7 7 7 Processor 14 | . 13 13 . . 16 18 23 23 19 18 7 Hackware 2 | . . . . . . . . . 6 7 7 Protection 3 | . . . . . 13 13 4 4 2 . 3 Energy Gun 3 | . 21 14 . . . . . . . . . Impact Weapon 3 | . 3 13 10 2 . . . . . . 1 Slashing Weapon 10 | . . . 14 14 9 9 8 12 10 17 20 Piercing Weapon 4 | . . . . 1 8 9 8 7 6 4 . Peak Build Rating 68 | 9 10 16 16 22 42 41 42 46 66 68 67 Average Rating 34 | 6 9 11 14 17 39 39 38 43 44 65 64 On Entrance 30 | . 9 10 16 15 22 41 38 33 44 66 66 Naked Turns . | . . . . . . . . . . . . Heaviest Build 89 | 15 89 35 35 36 45 45 45 40 52 64 69 Greatest Support 150 | 26 20 20 20 20 53 53 45 69 150 150 150 Greatest Overweight (x) 8 | . 8 2 1 1 . 1 1 . 4 . . Average Overweight (x) . | . 1 1 1 1 . . . . . . . Largest Inventory Capacity 25 | 8 25 15 15 20 15 15 15 15 20 20 20 Average Capacity 15 | 7 15 15 15 15 15 15 15 15 15 20 20 Most Carried 20 | 8 15 15 15 15 15 15 15 15 20 20 20 Average Carried 14 | 6 9 14 14 14 14 14 14 14 14 19 18 Final Capacity 20 | 8 15 15 15 15 15 15 15 15 20 20 20 Final Carried 20 | 8 15 14 15 15 15 15 15 15 20 20 19 Class Distribution -------------------- 33% | Gladiator 32% | Mutant 26% | Scavenger-Gladiator 7% | Scavenger-Mutant Dominant Class ---------------- Mutant | -10/Materials Scavenger-Mutant | -10/Mines Mutant | -10/Exiles Mutant | -9/Mines Gladiator | -8/Materials Gladiator | -8/Garrison Gladiator | -8/Materials Gladiator | -7/Factory Scavenger-Gladiator | -7/Garrison Scavenger-Gladiator | -7/Factory Scavenger-Gladiator | -7/Lower Caves Resources | -11 -10 -10 -10 -9 -8 -8 -8 -7 -7 -7 -7 ----------- Run | Yrd Mat Min Exi Min Mat Gar Mat Fac Gar Fac Low Matter Collected 2696 | 348 361 116 100 361 360 50 181 179 389 100 151 Remotely . | . . . . . . . . . . . . Salvage Created 5381 | 188 445 81 . 138 364 685 518 336 1788 237 601 Parts 236 | 12 26 5 . 6 18 32 32 17 54 12 22 Haulers Intercepted 7 | . . . . . 3 . 4 . . . . Recyclers Shooed 8 | 2 4 1 . . . . 1 . . . . Parts Field Recycled . | . . . . . . . . . . . . Retrieved Matter . | . . . . . . . . . . . . Parts Self-Destructed 21 | . . . . . . . . . . . 21 Prevented . | . . . . . . . . . . . . Kills | -11 -10 -10 -10 -9 -8 -8 -8 -7 -7 -7 -7 ------- Run | Yrd Mat Min Exi Min Mat Gar Mat Fac Gar Fac Low Combat Hostiles Destroyed 88 | . 11 2 . 3 6 13 5 11 19 5 13 Melee 62 | . 2 . . . 3 13 5 7 16 5 11 Guns 3 | . 3 . . . . . . . . . . AOE 22 | . 6 2 . 3 3 . . 4 3 . 1 Classes Destroyed 15 | 3 6 . . 1 2 1 1 . . . 1 Worker 4 | 1 2 . . . 1 . . . . . . Builder 2 | . 1 . . . . . . 1 . . . Tunneler 4 | 3 1 . . . . . . . . . . Hauler 7 | . . . . . 3 . 4 . . . . Recycler 4 | 1 1 . . 1 . . 1 . . . . Mechanic 1 | . 1 . . . . . . . . . . Operator 1 | . 1 . . . . . . . . . . Watcher 1 | . 1 . . . . . . . . . . Swarmer 20 | . 3 . . . 3 . . 7 1 2 4 Grunt 47 | . 8 2 . 2 2 10 1 3 13 . 6 Brawler 1 | . . . . . . . . . . . 1 Duelist 4 | . . . . 1 . 1 1 . 1 . . Sentry 9 | . . . . . 1 1 2 . 1 3 1 Hunter 5 | . . . . . . . 1 1 3 . . Programmer 2 | . . . . . . 1 . . . . 1 Packrat 1 | . . . . . . . . . . . 1 Best Kill Streak 8 | 4 6 2 . 3 4 3 2 5 5 2 8 Combat Bots Only 8 | . 3 2 . 3 3 3 1 4 5 2 8 Max Kills in Single Turn 4 | 1 4 2 . 3 2 1 1 2 2 1 1 Gunslinging . | . . . . . . . . . . . . Exploded 3 | . 3 2 . 3 1 . . 2 2 . 1 Melee 2 | . 1 . . . 1 1 1 1 2 1 1 Uniques/NPCs Destroyed . | . . . . . . . . . . . . Combat | -11 -10 -10 -10 -9 -8 -8 -8 -7 -7 -7 -7 -------- Run | Yrd Mat Min Exi Min Mat Gar Mat Fac Gar Fac Low Hostile Shots Fired 681 | . 65 8 . 16 11 85 39 53 163 137 104 Missed 204 | . 15 3 . 6 6 21 9 15 50 53 26 Damage Taken 6815 | . 648 107 . 118 113 1032 517 627 1866 580 1207 Core 1165 | . 172 17 . 15 7 183 64 46 415 45 201 Absorbed by Shields 29 | . . . . 29 . . . . . . . Reduced by Siege Mode 26 | . . . . . . . . . . . 26 Regen/Repaired (Parts) 377 | . . . . . . . . 46 . 331 . Core Remaining (%) 57 | 100 . . . 18 . . 53 . . . . Volleys Fired 81 | 17 30 4 . 5 3 . 2 6 10 . 4 Largest 2 | 2 2 2 . 1 1 . 1 1 1 . 1 Hottest 100 | 80 100 80 . 33 33 . 5 33 33 . 36 Shots Fired 107 | 18 53 6 1 4 3 . 2 6 10 . 4 Gun 72 | 18 49 4 1 . . . . . . . . Cannon . | . . . . . . . . . . . . Launcher 25 | . 4 2 . 4 3 . . 4 4 . 4 Special 10 | . . . . . . . 2 2 6 . . Kinetic 29 | 16 13 . . . . . . . . . . Thermal 40 | . 35 4 1 . . . . . . . . Explosive 25 | . 4 2 . 4 3 . . 4 4 . 4 Electromagnetic 3 | 2 1 . . . . . . . . . . Robot Hit Streak 8 | 8 6 2 . 1 3 . 5 3 5 . 3 Robot Miss Streak 6 | 1 6 1 1 3 . . . 1 3 . 1 Penetration Max . | . . . . . . . . . . . . Secondary Targets 1 | . 1 . . . . . . . . . . Max Gunslinging Chain 1 | . 1 . . . . . . . . . . Shots Hit Robots 287 | 15 33 3 . 3 12 34 26 20 103 16 22 Core Hits 163 | 6 27 4 . 6 8 16 12 15 46 6 17 Critical Kills . | . . . . . . . . . . . . Critical Parts Destroyed 3 | . 2 . . . . . . . . . 1 Critical Strikes 30 | . 6 . . 1 . 8 1 1 7 2 4 Burn 4 | . 4 . . . . . . . . . . Smash 3 | . 2 . . . . . . . . . 1 Sever 11 | . . . . 1 . 1 . . 4 2 3 Impale 12 | . . . . . . 7 1 1 3 . . Melee Attacks 417 | . 10 . . 2 30 52 34 44 156 53 36 Impact 14 | . 10 . . . . . . . . . 4 Slashing 239 | . . . . 2 7 6 6 11 125 50 32 Piercing 164 | . . . . . 23 46 28 33 31 3 . Sneak Attacks 17 | . 2 . . 2 4 1 6 . . . 2 Combat Hostiles 3 | . . . . . 1 1 . . . . 1 Follow-up Attacks 42 | . . . . . 1 3 1 2 23 5 7 Damage Inflicted 12405 | 191 1062 83 . 426 869 1095 937 888 5005 626 1223 Guns 592 | 191 377 24 . . . . . . . . . Cannons . | . . . . . . . . . . . . Explosions 2300 | . 465 59 . 360 410 . . 321 390 . 295 Melee 9513 | . 220 . . 66 459 1095 937 567 4615 626 928 Ramming . | . . . . . . . . . . . . Kinetic 281 | 166 115 . . . . . . . . . . Thermal 333 | . 309 24 . . . . . . . . . Explosive 2238 | . 403 59 . 360 410 . . 321 390 . 295 Electromagnetic 40 | 25 15 . . . . . . . . . . Impact 343 | . 220 . . . . . . . . . 123 Slashing 5763 | . . . . 66 69 105 98 71 3923 626 805 Piercing 3407 | . . . . . 390 990 839 496 692 . . Highest Corruption 19 | . . 19 19 19 . 4 4 1 . . 2 Average Corruption 8 | . . 1 19 19 . 3 4 1 . . 1 Corruption Purged 1 | . . . . . . . . 1 . . . Corruption Blocked . | . . . . . . . . . . . . Effects 110 | . . 12 49 27 . 5 16 . . . 1 Message Errors 21 | . . 3 13 5 . . . . . . . Matter Fused 27 | . . 2 13 6 . 2 3 . . . 1 Heat Flow Errors 18 | . . 2 8 3 . . 5 . . . . Energy Discharges 17 | . . . 6 7 . 1 3 . . . . Data Loss (minor) 16 | . . 4 6 3 . 1 2 . . . . Data Loss (major) 7 | . . 1 1 2 . . 3 . . . . Misfires 1 | . . . 1 . . . . . . . . Alerts 2 | . . . 1 . . 1 . . . . . Weapon Failures 1 | . . . . 1 . . . . . . . Overload Shots . | . . . . . . . . . . . . Overflow Damage 530 | . 92 . . . 54 39 29 62 103 . 151 Projectiles . | . . . . . . . . . . . . Explosions 69 | . . . . . 47 . . 22 . . . Melee 461 | . 92 . . . 7 39 29 40 103 . 151 Knockbacks 2 | . 1 . . . . . . . . . 1 Impact 2 | . 1 . . . . . . . . . 1 Kinetic . | . . . . . . . . . . . . Secondary . | . . . . . . . . . . . . Self-Inflicted Damage 124 | . 13 . . 36 . . . 56 . . 19 Shots 6 | . 1 . . 2 . . . 1 . . 2 Rammed . | . . . . . . . . . . . . Targets Rammed . | . . . . . . . . . . . . Kicked . | . . . . . . . . . . . . Crushed . | . . . . . . . . . . . . Highest Temperature 273 | 3 156 233 268 161 . 26 273 3 . . 11 Average Temperature 75 | 2 37 65 110 68 . 10 117 3 . . 6 Received Heat Transfer 1878 | . 345 39 . 48 27 396 135 90 393 78 327 Effects 2 | . . . 2 . . . . . . . . Interference 2 | . . . 2 . . . . . . . . Siege Activations 1 | . . . . . . . . . . . 1 Total Turns 15 | . . . . . . . . . . . 15 Longest Duration 15 | . . . . . . . . . . . 15 Robots Corrupted 2 | . 1 . . . . . . . . . 1 Combat Hostiles 1 | . . . . . . . . . . . 1 Parts Fried 2 | . 2 . . . . . . . . . . Impact Corruptions 6 | . 4 . . . . . . . . . 2 Robots Melted . | . . . . . . . . . . . . Combat Hostiles . | . . . . . . . . . . . . Parts Melted 2 | . 2 . . . . . . . . . . Heat Transferred 1160 | . 1086 74 . . . . . . . . . Parts Sabotaged . | . . . . . . . . . . . . Parts Stolen . | . . . . . . . . . . . . Parts Stripped . | . . . . . . . . . . . . Power Chain Reactions . | . . . . . . . . . . . . Alert | -11 -10 -10 -10 -9 -8 -8 -8 -7 -7 -7 -7 ------- Run | Yrd Mat Min Exi Min Mat Gar Mat Fac Gar Fac Low Peak Influence 984 | 25 355 111 . 98 219 432 287 291 984 550 . Initial 516 | . 16 45 . . 37 47 210 91 168 516 . Average 239 | 10 192 44 . 22 54 253 206 184 525 471 . Maximum Alert Level 3 | . 1 . . . 1 2 1 1 3 2 . Low Security (%) 51 | 100 53 100 . 100 99 41 37 41 6 . . Level 1 22 | . 46 . . . . 37 62 58 22 17 . Level 2 20 | . . . . . . 20 . . 46 82 . Level 3 4 | . . . . . . . . . 24 . . Level 4 . | . . . . . . . . . . . . Level 5 . | . . . . . . . . . . . . High Security . | . . . . . . . . . . . . Max Security . | . . . . . . . . . . . . Squads Dispatched 13 | . 2 . . 1 2 . 5 2 . 1 . Investigation 6 | . 1 . . 1 2 . 1 1 . . . Extermination 1 | . . . . . . . . . . 1 . Reinforcement 3 | . 1 . . . . . 1 1 . . . Assault . | . . . . . . . . . . . . Garrison 3 | . . . . . . . 3 . . . . Intercept . | . . . . . . . . . . . . Searches Triggered . | . . . . . . . . . . . . Construction Impeded 1 | . . . . . . . . 1 . . . Haulers Reinforced . | . . . . . . . . . . . . Active Scanning Responses . | . . . . . . . . . . . . Cargo Convoy Interrupts . | . . . . . . . . . . . . Stealth | -11 -10 -10 -10 -9 -8 -8 -8 -7 -7 -7 -7 --------- Run | Yrd Mat Min Exi Min Mat Gar Mat Fac Gar Fac Low Distress Signals 7 | . 1 . . . 2 . 4 . . . . Communications Jammed . | . . . . . . . . . . . . Distress Signals . | . . . . . . . . . . . . Times Spotted 126 | . 18 6 . 8 8 15 5 13 29 8 16 Peak Tracking Total 7 | . 6 3 . 3 5 4 2 4 6 3 7 Tactical Retreats 9 | . . 1 . . . 1 . 2 2 . 3 Traps | -11 -10 -10 -10 -9 -8 -8 -8 -7 -7 -7 -7 ------- Run | Yrd Mat Min Exi Min Mat Gar Mat Fac Gar Fac Low Traps Triggered 9 | . 3 1 . . 1 1 . 1 2 . . Indirectly . | . . . . . . . . . . . . Trap Hack Attempts . | . . . . . . . . . . . . Triggered . | . . . . . . . . . . . . Disarmed . | . . . . . . . . . . . . Reprogrammed . | . . . . . . . . . . . . Reused . | . . . . . . . . . . . . Traps Extracted . | . . . . . . . . . . . . Installed . | . . . . . . . . . . . . Triggered . | . . . . . . . . . . . . Most Traps Carried 1 | . . 1 1 1 . . . . . . . Machines | -11 -10 -10 -10 -9 -8 -8 -8 -7 -7 -7 -7 ---------- Run | Yrd Mat Min Exi Min Mat Gar Mat Fac Gar Fac Low Machines Disabled 10 | . 2 . . . . 1 . . 5 . 2 Max in Single Turn 2 | . 2 . . . . 1 . . 1 . 1 Garrison Access 2 | . . . . . . . 1 . . 1 . Garrison Relay 6 | . . . . . . 1 . . 5 . . Machines Repaired . | . . . . . . . . . . . . Machines Dismantled . | . . . . . . . . . . . . Machines Sabotaged . | . . . . . . . . . . . . Overloaded Fab Kills . | . . . . . . . . . . . . Hacking | -11 -10 -10 -10 -9 -8 -8 -8 -7 -7 -7 -7 --------- Run | Yrd Mat Min Exi Min Mat Gar Mat Fac Gar Fac Low Machines Accessed 41 | . 4 1 3 1 9 2 5 4 3 8 1 Terminals 21 | . 1 . . . 8 2 2 . 3 4 1 Fabricators 3 | . . . . . . . . 1 . 2 . Repair Stations 3 | . 1 . . . . . . 1 . 1 . Recycling Units 4 | . 2 . . . . . 1 1 . . . Scanalyzers 1 | . . . . . . . 1 . . . . Garrison Access 4 | . . . . . 1 . 1 1 . 1 . Total Hacks 94 | . 9 1 5 1 28 4 12 11 7 12 4 Successful 52 | . 4 1 5 1 17 2 4 6 1 7 4 Failed 42 | . 5 . . . 11 2 8 5 6 5 . Catastrophic 7 | . 3 . . . . . 1 . . 3 . Database Lockouts . | . . . . . . . . . . . . Manual 33 | . 4 . 1 . 13 2 5 4 . 4 . Terminals 55 | . 3 . . . 26 4 5 . 7 6 4 Fabricators 5 | . . . . . . . . 3 . 2 . Repair Stations 7 | . 1 . . . . . . 4 . 2 . Recycling Units 10 | . 5 . . . . . 3 2 . . . Scanalyzers 2 | . . . . . . . 2 . . . . Garrison Access 8 | . . . . . 2 . 2 2 . 2 . Terminal Hacks 25 | . . 1 5 1 11 1 . . 1 1 4 Record 9 | . . . 4 . 1 . . . . . 4 Part Schematic 1 | . . . . . 1 . . . . . . Robot Analysis 1 | . . . . . 1 . . . . . . Prototype ID Bank 2 | . . . . . 2 . . . . . . Open Door 2 | . . 1 . 1 . . . . . . . Open DSF 1 | . . . . . . . . . . 1 . Branch Access Points 1 | . . . . . 1 . . . . . . Emergency Access Points 2 | . . . . . 1 . . . 1 . . Alert Level 1 | . . . . . 1 . . . . . . Locate Traps 1 | . . . . . 1 . . . . . . Reinforcement Status 1 | . . . . . 1 . . . . . . Hauler Manifests 1 | . . . . . 1 . . . . . . Patrol Navigation 1 | . . . . . . 1 . . . . . Derelict Proto ID Bank 1 | . . . 1 . . . . . . . . Fabricator Hacks . | . . . . . . . . . . . . Repair Station Hacks 4 | . . . . . . . . 2 . 2 . Scan Component 2 | . . . . . . . . 1 . 1 . Repair 2 | . . . . . . . . 1 . 1 . Recycling Unit Hacks 2 | . 1 . . . . . . 1 . . . Report Inventory 1 | . . . . . . . . 1 . . . Retrieve Matter 1 | . 1 . . . . . . . . . . Scanalyzer . | . . . . . . . . . . . . Garrison Access Hacks 8 | . . . . . 2 . 2 2 . 2 . Unlock Access 2 | . . . . . 1 . . 1 . . . Seal Access 2 | . . . . . . . 1 . . 1 . Coupler Status 4 | . . . . . 1 . 1 1 . 1 . Unauthorized Hacks 13 | . 3 . . . 4 1 2 1 . 2 . Terminals 9 | . 2 . . . 4 1 1 . . 1 . Track 1 | . . . . . 1 . . . . . . Assimilate 1 | . 1 . . . . . . . . . . Botnet 7 | . 1 . . . 3 1 1 . . 1 . Fabricators 1 | . . . . . . . . . . 1 . Liberate 1 | . . . . . . . . . . 1 . Repair Stations . | . . . . . . . . . . . . Recycling Units 3 | . 1 . . . . . 1 1 . . . Recyclers 3 | . 1 . . . . . 1 1 . . . Scanalyzers . | . . . . . . . . . . . . Garrison Access . | . . . . . . . . . . . . Data Cores Recovered . | . . . . . . . . . . . . Used . | . . . . . . . . . . . . Hacking Detections 32 | . 4 . . . 8 2 4 4 3 6 1 Full Trace Events 4 | . . . . . 2 . . 1 . . 1 Feedback Events . | . . . . . . . . . . . . Feedback Blocked . | . . . . . . . . . . . . Robot Schematics Acquired . | . . . . . . . . . . . . Robots Built . | . . . . . . . . . . . . Authchips . | . . . . . . . . . . . . Time . | . . . . . . . . . . . . Total Robot Build Rating . | . . . . . . . . . . . . Part Schematics Acquired 1 | . . . . . 1 . . . . . . Parts Built . | . . . . . . . . . . . . Authchips . | . . . . . . . . . . . . Time . | . . . . . . . . . . . . Total Part Build Rating . | . . . . . . . . . . . . Parts Repaired 2 | . . . . . . . . 1 . 1 . Time 100 | . . . . . . . . 38 . 62 . Parts Recycled . | . . . . . . . . . . . . Recycled Matter . | . . . . . . . . . . . . Retrieved Matter 134 | . 134 . . . . . . . . . . Retrieved Components . | . . . . . . . . . . . . Parts Scanalyzed . | . . . . . . . . . . . . Part Schematics Acquired . | . . . . . . . . . . . . Parts Damaged . | . . . . . . . . . . . . Bothacking | -11 -10 -10 -10 -9 -8 -8 -8 -7 -7 -7 -7 ------------ Run | Yrd Mat Min Exi Min Mat Gar Mat Fac Gar Fac Low Used RIF Installer 2 | . . . . . . 1 . . 1 . . Hotswap 1 | . . . . . . . . . 1 . . Robots Hacked 5 | . . . . . . . 1 . 4 . . Non-combat 1 | . . . . . . . 1 . . . . Combat 4 | . . . . . . . . . 4 . . Robot Hacks Applied 6 | . . . . . . . 2 . 4 . . parse_system 1 | . . . . . . . 1 . . . . no_distress 1 | . . . . . . . 1 . . . . amplify_resonance 2 | . . . . . . . . . 2 . . disable_weapons 1 | . . . . . . . . . 1 . . formatsys_high 1 | . . . . . . . . . 1 . . Relay Couplers Released 28 | . . . . . . 7 . . 21 . . Machine Destruction 25 | . . . . . . 4 . . 21 . . Programmers 3 | . . . . . . 3 . . . . . Attached 3 | . . . . . . . . . 3 . . Fabnet Peak Effective % . | . . . . . . . . . . . . Robots Rewired . | . . . . . . . . . . . . Allies Hacked . | . . . . . . . . . . . . Hacks Repelled . | . . . . . . . . . . . . Allies | -11 -10 -10 -10 -9 -8 -8 -8 -7 -7 -7 -7 -------- Run | Yrd Mat Min Exi Min Mat Gar Mat Fac Gar Fac Low Total Allies 7 | . . 4 . . . . . . 3 . . Largest Group 4 | . . 4 4 3 . . . . 2 1 . Highest-Rated Group 157 | . . 71 71 40 . . . . 157 62 . Highest-Rated Ally 95 | . . 31 31 16 . . . . 95 62 . Total Orders . | . . . . . . . . . . . . Ally Attacks 48 | . . 9 . 8 . . . . 18 13 . Total Damage 1286 | . . 62 . 73 . . . . 784 367 . Kills 11 | . . 3 . . . . . . 4 4 . Allies Corrupted 1 | . . . . . . . . . 1 . . Allies Melted . | . . . . . . . . . . . . Intel | -11 -10 -10 -10 -9 -8 -8 -8 -7 -7 -7 -7 ------- Run | Yrd Mat Min Exi Min Mat Gar Mat Fac Gar Fac Low Robot Analysis Total 1 | . . . . . 1 . . . . . . Derelict Logs Recovered 5 | . . 2 . . . . . . . . 3 Drone Launches . | . . . . . . . . . . . . Drone Recoveries . | . . . . . . . . . . . . Exploration | -11 -10 -10 -10 -9 -8 -8 -8 -7 -7 -7 -7 ------------- Run | Yrd Mat Min Exi Min Mat Gar Mat Fac Gar Fac Low Turns Passed 10505 | 175 825 1441 1091 603 982 625 717 620 1640 1098 688 Spaces Moved 5594 | 127 537 573 563 261 634 357 383 358 894 543 364 Core 2 | 2 . . . . . . . . . . . Treads 976 | . . . . . . . . . 69 543 364 Legs 3988 | . 60 565 563 261 634 357 383 358 807 . . Wheels 628 | 125 477 8 . . . . . . 18 . . Hover . | . . . . . . . . . . . . Flight . | . . . . . . . . . . . . Fastest Speed 50 | 50 80 110 190 190 120 123 123 112 105 160 160 Average Speed 144 | 83 114 188 190 190 122 123 131 117 124 160 160 Slowest Speed 200 | 90 200 190 190 190 123 195 195 122 190 160 160 Overloaded Moves . | . . . . . . . . . . . . Propulsion Burnouts . | . . . . . . . . . . . . Robots Hopped . | . . . . . . . . . . . . Cave-ins Triggered . | . . . . . . . . . . . . Exploration Rate (%) 47 | 6 56 98 89 29 51 47 35 12 73 16 55 Regions Visited 11 Branch Regions 4 Pre-discovered Areas 2 | . . . 1 . . . . . . . 1 Known Exits Taken 2 | . . . . . 1 . . 1 . . . Unknown Exits Taken 7 | 1 1 1 1 1 . . 1 . . 1 . Scrap Searched 6 | . . . . . . . . . . . 6 Spaces Dug 84 | . . . . . 14 1 4 26 17 22 . Terrain Destroyed 275 | . 72 18 . 42 40 1 4 41 25 22 10 Melee 75 | . . . . . 14 1 4 17 17 22 . Projectile . | . . . . . . . . . . . . AOE 200 | . 72 18 . 42 26 . . 24 8 . 10 Terrain Rammed . | . . . . . . . . . . . . Walls Destroyed . | . . . . . . . . . . . . Machines Disabled . | . . . . . . . . . . . . Actions | -11 -10 -10 -10 -9 -8 -8 -8 -7 -7 -7 -7 --------- Run | Yrd Mat Min Exi Min Mat Gar Mat Fac Gar Fac Low Total 7414 | 178 678 929 587 360 803 465 548 497 1219 717 433 Wait 1002 | 3 48 315 15 57 88 46 112 78 104 116 20 Move 5581 | 126 536 572 562 260 633 355 382 357 892 542 364 Hop . | . . . . . . . . . . . . Pick Up 124 | 15 21 11 3 10 18 3 2 5 25 5 6 Fast Attach 44 | 6 4 2 . 3 3 1 7 1 13 2 2 Attach 39 | 1 9 1 1 . 6 1 2 3 11 1 3 Detach 6 | . 1 1 1 . 2 . . . 1 . . Swap 77 | 3 9 9 1 10 6 3 5 8 11 7 5 Drop 118 | 7 10 14 3 13 19 5 7 5 24 7 4 Fire 81 | 17 30 4 . 5 3 . 2 6 10 . 4 Melee 329 | . 10 . . 2 25 46 29 33 122 37 25 Ram . | . . . . . . . . . . . . Kick . | . . . . . . . . . . . . Crush . | . . . . . . . . . . . . Escape Stasis 11 | . . . . . . 5 . . 6 . . Rewire 2 | . . . 1 . . . . 1 . . . Trap . | . . . . . . . . . . . . Miscellaneous . | . . . . . . . . . . . . Route ------- -11/Scrapyard -10/Materials (discovered 3 exits: [*Mat x2] / *Min) -10/Mines (discovered 3 exits: [*Mat x2] / *Exi) -10/Exiles -9/Mines -8/Materials (discovered 2 exits: *Fac / Gar) -8/Garrison -8/Materials -7/Factory -7/Garrison (discovered 3 exits: *Fac x3) -7/Factory -7/Lower Caves (discovered 1 exit: Low) History --------- Turn | Location | Event 32 | -11/Scrapyard | Discovered new exit (range 13) 176 | -11/Scrapyard | Entered Materials 252 | -10/Materials | Discovered new exit (range 15) 304 | -10/Materials | Build established: Mutant 323 | -10/Materials | Core integrity fell below 50% 361 | -10/Materials | Lost 3 parts (1p1n1w) 492 | -10/Materials | Discovered new exit (range 9) 903 | -10/Materials | Discovered new exit (range 4) 1001 | -10/Materials | Entered Mines 1009 | -10/Mines | Met a Derelict who couldn't figure out how to use a Trap Extractor 1135 | -10/Mines | Discovered new exit (range 11) 1205 | -10/Mines | Learned 2 Materials zone layouts 1314 | -10/Mines | Found a hidden stash of uninstalled traps 1695 | -10/Mines | Discovered new exit (range 5) 1756 | -10/Mines | Joined a pair of Derelicts in attacking an 0b10 outpost 1824 | -10/Mines | Learned Materials terminal intel 1849 | -10/Mines | Assisted by bots powering up and referring to "LRC-V3" 1916 | -10/Mines | Build established: Scavenger-Mutant 1920 | -10/Mines | Escorted by a lone wolf Derelict 2383 | -10/Mines | Deemed a non-threat by the Exiles lab entrance 2383 | -10/Mines | Discovered new exit (range 5) 2414 | -10/Mines | System corruption reached 10% 2442 | -10/Mines | Entered Exiles 2442 | -10/Exiles | Accompanied by 4 allies 2508 | -10/Exiles | Met 8R-AWN 2552 | -10/Exiles | Met EX-HEX 2614 | -10/Exiles | Met EX-BIN 2646 | -10/Exiles | Aligned with FarCom system 2648 | -10/Exiles | Given EX-Vault access code 2692 | -10/Exiles | Build established: Mutant 2737 | -10/Exiles | Opened EX-Vault 2750 | -10/Exiles | Found Cloak of Protection 2810 | -10/Exiles | Warned to stay clear of 0b10 Research branches 2865 | -10/Exiles | Met EX-DEC 2880 | -10/Exiles | Learned location of Zion (-6) 2995 | -10/Exiles | Discovered new exit (range 10) 3141 | -10/Exiles | Visited The Gauntlet 3533 | -10/Exiles | Left Exiles lab with Cloak of Protection 3533 | -10/Exiles | Entered Mines 3533 | -9/Mines | Accompanied by 3 allies 3658 | -9/Mines | Lost 3 allies 3671 | -9/Mines | Received a Rocket Launcher from a helpful Derelict 3834 | -9/Mines | Discovered new exit (range 8) 3896 | -9/Mines | Met a Derelict shopkeep closing up shop 4014 | -9/Mines | Core integrity fell below 20% 4136 | -9/Mines | Entered Materials 4136 | -8/Materials | Evolved 4 slots: Propulsion x1, Utility x3 4138 | -8/Materials | Loaded intel: 12 terminal locations 4424 | -8/Materials | Discovered new exit (range 5) 4464 | -8/Materials | Build established: Gladiator 4726 | -8/Materials | Met 7R-MNS 5063 | -8/Materials | Identified exit to Garrison 5118 | -8/Materials | Entered Garrison 5154 | -8/Garrison | Installed Relay Interface Framework 5184 | -8/Garrison | Triggered checkpoint 5260 | -8/Garrison | Garrison Relay disabled 5552 | -8/Garrison | Triggered checkpoint 5689 | -8/Garrison | Discovered new exit (range 8) 5743 | -8/Garrison | Entered Materials 5883 | -8/Materials | Garrison activated, responded to threat 6433 | -8/Materials | Discovered new exit (range 10) 6460 | -8/Materials | Entered Factory 6460 | -7/Factory | Evolved 2 slots: Propulsion x1, Weapon x1 7024 | -7/Factory | Repaired Katana 7079 | -7/Factory | Identified exit to Garrison 7080 | -7/Factory | Entered Garrison 7134 | -7/Garrison | Triggered checkpoint 7262 | -7/Garrison | Garrison Relay disabled 7320 | -7/Garrison | Triggered checkpoint 7530 | -7/Garrison | Triggered checkpoint 7547 | -7/Garrison | Triggered checkpoint 7632 | -7/Garrison | Lost 3 parts (1p1n1w) 7707 | -7/Garrison | Lost 5 parts (1p2n1u1w) 7768 | -7/Garrison | Core integrity fell below 50% 7796 | -7/Garrison | Lost 3 parts (3n) 7883 | -7/Garrison | Discovered new exit (range 11) 7934 | -7/Garrison | Triggered checkpoint 8006 | -7/Garrison | Garrison Relay disabled 8031 | -7/Garrison | Found embedded Infiltrators 8148 | -7/Garrison | Discovered new exit (range 12) 8198 | -7/Garrison | Triggered checkpoint 8216 | -7/Garrison | Garrison Relay disabled 8281 | -7/Garrison | Build established: Scavenger-Gladiator 8306 | -7/Garrison | Discovered new exit (range 8) 8322 | -7/Garrison | Triggered checkpoint 8351 | -7/Garrison | Expanded RIF knowledge: Hotswap 8352 | -7/Garrison | Triggered checkpoint 8690 | -7/Garrison | Garrison Relay disabled 8720 | -7/Garrison | Entered Factory 8720 | -7/Factory | Accompanied by 1 ally 8912 | -7/Factory | Repaired Imp. Heavy Treads 9733 | -7/Factory | Discovered new exit (range 6) 9818 | -7/Factory | Entered Lower Caves 9853 | -7/Lower Caves | Identified exit to Lower Caves 10052 | -7/Lower Caves | Core integrity fell below 20% 10101 | -7/Lower Caves | Encountered a Warlord checkpoint 10161 | -7/Lower Caves | Learned location of 1 exit from Factory 10295 | -7/Lower Caves | Attracted the attention of an 0b10 base 10385 | -7/Lower Caves | Learned location of Extension (-5) 10388 | -7/Lower Caves | Destroyed 8 combat bots 10469 | -7/Lower Caves | Learned Factory non-interactive machine intel 10483 | -7/Lower Caves | Attracted the attention of an 0b10 checkpoint 10506 | -7/Lower Caves | Destroyed by Y-54 Guardian with Gatling Laser Last Messages --------------- >>Query(Status Report 201X) INTERCEPTED DERELICT INTEL. World map updated: -5/Extension. >>Query(Status Report 123X) INTERCEPTED DERELICT INTEL. Data stored: Upper Caves entrances (x2). 10390_ Storage Shell breached. 10394_ Acquired Assault Cannon. 10399_ System corrupted: Matter fused (-9). 10400_ Acquired Assault Cannon. 10407_ Acquired 5 matter. 10412_ Acquired 6 matter. 10469_ Acquired derelict log, extracted data. Data stored: Factory non-interactive machine intel. 10474_ Searching scrap... 10474_ Found Imp. Carbon-fiber Leg. 10474_ Found 61 Matter. 10477_ Acquired Imp. Carbon-fiber Leg. 10483_ Y-54 Guardian: "INTERCEPTING UNREGISTERED DERELICT." Map ----- +----------------------------------------------------+ | ???????????????????????????????????# # #? | | ????????????? ??????????????###### ## ##? | | ????????????? ?????????????# ### ##?? | | ???????????? ####??####### ### #??? | | ???????????# #?# % ###? | | ????????????# ## %= ## | | ??????????????# ###### | | ??????????????# #""" % | | ??????????? #""T" + ## | | ??????????? # # # ##? | | ??????????? ##### " # ##?? | | ???????????? ?##### #" ## #??? | | ????????????? ??## # #" ## #??? | | ??????????? ? ???# #" " "# ## #??? | | ????????? ??????## #" " # ## #??? | | ?????????? ???????### #" " ]# # #??? | | ??????????# ????????## ########### ## #??? | | ??????????# ?????????# ##? #??? | | ?????????## ????????# ##?? #??? | | ????????## ????????# #### #####???? #??? | | ????? ### ???????# #???? #?????? #??? | | ????? ???????# ##?????? #????? ???? | | ???? ??????# ##??????? ??????????? | | ???? ??????# #????? #??????????? | | ????? ?????## #??? #??????????? | | ????????# #######@ ## #??????????? | | ????????# % Y #??????????? | | ?????# ##??????????????? | | ?????# ###### ## #???????????????? | | ?????# ?????# #??#???????????????? | | ?????# ??????# ## #??????????????????? | | ????? ##???????# ##?##??????????????????? | | ????? ###?????????? #??????????????????????? | | ?????###????????????? ##??????????????????????? | | ????????????????????? ###???????????????????????? | | ????????????????????###??????????????????????????? | | ?????????????????????????????????????????????????? | | ?????????????????????????????????????????????????? | | ?????????????????????????????????????????????????? | | ?????????????????????????????????????????????????? | | ?????????????????????????????????????????????????? | | ?????????????????????????????????????????????????? | | ?????????????????????????????????????????????????? | | ?????????????????????????????????????????????????? | | ?????????????????????????????????????????????????? | | ?????????????????????????????????????????????????? | | ?????????????????????????????????????????????????? | | ?????????????????????????????????????????????????? | | ?????????????????????????????????????????????????? | | ?????????????????????????????????????????????????? | +----------------------------------------------------+ Best States ------------- Heat Dissipation 34 Energy Generation 16 Energy Capacity 290 Matter Stores 300 Matter Capacity 300 Sight Range 18 Terrain Scan Range 16 Terrain Scan Density 10 Cloak Strength 5 Additional Mass Support 12 Armor Coverage 450 Melee Speed Boost 20 Evasion (%) 63 Melee Accuracy 18 Recoil Reduction 4 Kinecelleration 30 Force Boost 20 Relay Coupler Types 1 Relay Coupler Value 45 Trap Extractor Capacity 6 Item Schematics ----------------- Lrg. Storage Unit | -8/Materials | Hacked Robot Schematics ------------------ None Fabricated ------------ Nothing Alien Tech Used ----------------- None Achievements -------------- Ambidextrous Error 47 Challenges ------------ None Game ------ Seed BiomechanicalFlakFlail Manual? 0 Play Time 02:32:48 Cumulative 51.7 hours Start 2024.11.23 @ 01:44:02 End 2024.11.24 @ 16:28:13 Sessions 9 Manual Loads 0 Difficulty Rogue Special Mode None Game No. 37 Rogue 37 Adventurer 0 Explorer 0 Win Type - Total 0 Types 0/0/0/0/0/0/0/0/0 Lore% 18 Gallery% 42 Achievement% 35 Wizard Run 0 Options --------- Layout 2 ASCII 0 Keyboard 0 Movement Numpad Keybinds 0 Fullscreen 2 Font 28/SmallcapsLarge Map View 59x48 Zoom Use 14% Tactical HUD 1 Map Filters NONE Filters NONE Steam 1 RUN: 0084c4da-4364-4720-9a46-30109ab1a1d2